bitfinex/quotes_ETHUSD_20220309
["timestamp","ask_amount","ask_price","bid_price","bid_amount"]
[1646842873239,1.2097658,2750.4,2750.3,1.51013693]
[1646842876387,1.2097658,2750.4,2750.3,1.52190693]
[1646842876597,0.3,2750.4,2750.3,1.52190693]
[1646842876788,0.04313528,2750.8,2750.3,1.52190693]
[1646842876989,0.04313528,2750.8,2750.4,1.51013693]
[1646842877191,0.9094,2750.9,2750.4,1.51013693]
[1646842877391,1.2094,2751.0,2750.4,1.51013693]
[1646842878191,1.2094,2751.0,2750.4,1.58921783]
[1646842878443,1.2094,2751.0,2750.6,0.00409798]
[1646842878444,0.9094,2751.0,2750.6,0.00409798]
[1646842878735,0.9094,2751.0,2750.7,1.51013693]
[1646842878935,2.86693997,2751.2,2750.8,3.5]
[1646842878936,0.90929,2751.2,2750.8,3.5]
[1646842879137,7.32,2751.4,2750.9,1.51013693]
[1646842879337,7.32,2751.4,2750.7,0.3]
[1646842879538,7.32,2751.4,2750.8,1.50956611]
[1646842879743,7.32,2751.4,2750.9,1.50956611]
[1646842879934,7.32,2751.4,2750.7,0.30410064]
[1646842880136,7.62,2751.4,2750.8,1.50952721]
[1646842880337,1.818576,2751.3,2750.8,1.50952721]
[1646842880537,2.118576,2751.3,2750.8,1.50952721]
[1646842880936,0.3,2751.3,2750.9,0.00410043]
[1646842881135,8.32,2751.4,2751.0,1.50952721]
[1646842881136,7.32,2751.4,2751.0,1.50952721]
[1646842881338,7.32,2751.4,2751.3,0.022264]
[1646842881538,20.0,2752.0,2751.3,1.015664]
[1646842881539,27.32,2752.0,2751.3,1.015664]
[1646842881736,27.32,2752.0,2751.7,0.015357]
[1646842884393,27.32,2752.0,2751.3,0.3]
[1646842884394,27.62,2752.0,2751.3,0.3]
[1646842884596,28.6634408,2752.0,2751.4,1.5092111]
[1646842884796,28.62,2752.0,2751.2,0.0866276]
[1646842884997,28.62,2752.0,2751.4,0.10183828]
[1646842885196,28.62,2752.0,2751.6,0.92355545]
[1646842885394,28.62,2752.0,2751.7,1.50916949]
[1646842885794,27.32,2752.0,2751.7,1.50916949]
[1646842886848,27.32,2752.0,2751.7,1.51349125]
[1646842887047,27.32,2752.0,2751.7,0.00432176]
[1646842887855,27.32,2752.0,2751.6,0.99636131]
[1646842888053,27.32,2752.0,2751.7,1.51345506]
[1646842888252,27.32,2752.0,2751.7,0.00432176]
[1646842888453,28.22903,2752.0,2751.7,0.00432176]
[1646842888854,30.0471555,2752.0,2751.7,0.00432176]
[1646842890086,30.0471555,2752.0,2751.4,1.05755823]
[1646842890293,27.32,2752.0,2751.5,1.50905605]
[1646842890489,27.32,2752.0,2751.7,0.00432176]
[1646842891287,27.32,2752.0,2751.6,0.011667]
[1646842891486,20.0,2752.0,2751.7,1.5089888]
[1646842891686,19.95,2752.0,2751.7,1.51331056]
[1646842891886,19.95,2752.0,2751.7,0.00432176]
[1646842892591,19.95,2752.0,2751.6,0.011667]
[1646842892796,19.95,2752.0,2751.7,1.51336246]
[1646842893091,19.95,2752.0,2751.7,0.00432176]
[1646842893835,19.95,2752.0,2751.6,0.011667]
[1646842894034,19.95,2752.0,2751.7,0.00432176]
[1646842895442,20.859068,2752.0,2751.7,0.00432176]
[1646842895640,22.159068,2752.0,2751.7,0.00432176]
[1646842895838,22.604068,2752.0,2751.7,0.00432176]
[1646842896041,23.604068,2752.0,2751.7,0.00432176]
[1646842896239,22.604068,2752.0,2751.7,0.00432176]
[1646842896439,1.81827,2751.9,2751.7,0.00409867]
[1646842896741,0.445,2751.8,2751.7,0.00409867]
[1646842896941,3.16535635,2751.8,2751.7,0.00409867]
[1646842897184,4.16535635,2751.8,2751.7,0.00409867]
[1646842897390,0.445,2751.8,2751.7,0.00409867]
[1646842897592,1.445,2751.8,2751.7,0.00409867]
[1646842897789,0.445,2751.8,2751.1,1.03485064]
[1646842897996,0.445,2751.8,2751.6,0.00409878]
[1646842898389,2.81827,2751.9,2751.6,0.00409878]
[1646842898390,1.81827,2751.9,2751.6,0.00409878]
[1646842898593,1.81827,2751.9,2751.4,0.015444]
[1646842898594,2.81827,2751.9,2751.4,0.015444]
[1646842898891,1.81827,2751.9,2751.6,0.00382908]
[1646842899090,2.81827,2751.9,2751.6,0.00382908]
[1646842899297,1.81827,2751.9,2751.6,0.00382908]
[1646842899489,2.81827,2751.9,2751.6,0.00382908]
[1646842899689,1.81827,2751.9,2751.6,0.00382908]
[1646842899890,1.81827,2751.9,2751.5,1.50920981]
[1646842900098,2.56327,2751.9,2751.6,0.00388308]
[1646842900292,2.11847,2751.7,2751.6,0.00388308]
[1646842900691,0.3,2751.7,2751.6,0.00388308]
[1646842901133,0.3,2751.8,2751.4,0.011667]
[1646842901334,0.3,2751.9,2751.5,0.00388317]
[1646842901536,20.95,2752.0,2751.5,0.00388317]
[1646842901537,21.25,2752.0,2751.5,0.00388317]
[1646842902437,23.06807,2752.0,2751.4,0.011667]
[1646842902637,23.06807,2752.0,2751.6,0.00390549]
[1646842903041,34.17807,2752.0,2751.6,0.00390549]
[1646842903239,11.855,2751.9,2751.6,0.00390549]
[1646842903639,0.98387492,2751.8,2751.6,0.00390549]
[1646842903839,1.42887492,2751.8,2751.7,0.00387772]
[1646842904700,1.8185539,2751.7,2751.2,0.011667]
[1646842904889,1.8185539,2751.7,2751.6,0.00387776]
[1646842905090,2.1185539,2751.7,2751.6,0.00387776]
[1646842905891,4.3821139,2751.7,2751.1,1.50934741]
[1646842906090,4.3821139,2751.7,2751.0,0.3]
[1646842906291,4.3821139,2751.7,2751.5,0.00387126]
[1646842906292,5.3821139,2751.7,2751.5,0.00387126]
[1646842906791,5.43535746,2751.7,2751.5,0.00387126]
[1646842907292,5.43535746,2751.7,2751.0,1.50935838]
[1646842907293,0.90928,2751.4,2751.0,1.50935838]
[1646842907690,2.11855,2751.4,2751.0,1.50935838]
[1646842908295,2.11855,2751.4,2751.0,1.52139538]
[1646842908533,2.11855,2751.4,2751.1,1.51322521]
[1646842909533,2.66359315,2751.4,2751.1,1.50935838]
[1646842909733,2.66359315,2751.4,2751.3,0.015617]
[1646842909734,1.84504315,2751.4,2751.3,0.015617]
[1646842909936,0.05324356,2751.7,2751.3,0.012523]
[1646842910341,19.955834,2752.0,2751.4,1.52364635]
[1646842910539,19.955834,2752.0,2751.5,1.52410935]
[1646842910741,20.255834,2752.0,2751.5,0.014828]
[1646842910949,19.955834,2752.0,2751.6,0.014709]
[1646842911238,19.955834,2752.0,2751.5,0.014828]
[1646842911239,21.255834,2752.0,2751.5,0.014828]
[1646842911842,21.255834,2752.0,2751.4,0.0182356]
[1646842912209,21.255834,2752.0,2751.5,1.50913976]
[1646842912401,21.255834,2752.0,2751.6,0.00387036]
[1646842913402,21.255834,2752.0,2751.7,0.00386716]
[1646842914204,21.255834,2752.0,2751.5,0.011667]
[1646842914205,0.90906,2751.9,2751.5,0.011667]
[1646842914405,3.6365096,2751.9,2751.7,0.015576]
[1646842914606,0.34846299,2751.8,2751.7,0.00386694]
[1646842915408,12.76428,2751.8,2751.7,0.00386694]
[1646842915605,14.94028023,2751.8,2751.7,0.00386694]
[1646842915806,1.04386078,2751.6,2751.1,1.50934443]
[1646842916040,0.445,2751.5,2751.1,1.50934443]
[1646842916242,0.745,2751.5,2751.3,0.015822]
[1646842916438,1.8187184,2751.6,2751.4,1.50934443]
[1646842916643,7.32,2751.9,2751.5,3.529168]
[1646842916841,7.32,2751.9,2751.8,0.016683]
[1646842918444,7.32,2751.9,2751.7,0.00387612]
[1646842918648,9.4383,2751.9,2751.7,0.00387612]
[1646842918849,12.1658712,2751.9,2751.7,0.00387612]
[1646842919243,12.1658712,2751.9,2751.6,1.5206896]
[1646842919444,12.36190056,2751.9,2751.7,0.00387617]
[1646842919892,13.80690056,2751.9,2751.7,0.00387617]
[1646842920293,3.09868968,2751.8,2751.7,0.00387617]
[1646842920492,3.54368968,2751.8,2751.7,0.00387617]
[1646842920692,4.54368968,2751.8,2751.4,1.50929669]
[1646842920892,4.54368968,2751.8,2751.7,0.00387126]
[1646842921092,1.445,2751.8,2751.7,0.00387126]
[1646842921292,3.54368968,2751.8,2751.7,0.00387126]
[1646842921600,3.54368968,2751.8,2751.5,1.50929669]
[1646842921795,4.54368968,2751.8,2751.3,0.311667]
[1646842921993,2.35427,2751.8,2751.6,0.00386644]
[1646842922194,0.3,2751.7,2751.6,0.00386644]
[1646842922894,0.3,2751.7,2751.5,1.50933645]
[1646842923196,0.90925,2751.6,2751.5,1.50933645]
[1646842923438,2.7277983,2751.6,2751.4,1.50933645]
[1646842923639,2.7277983,2751.6,2751.5,1.50933645]
[1646842923840,4.95597726,2751.6,2751.4,1.50933645]
[1646842924039,0.3,2751.5,2751.4,1.50933645]
[1646842924442,0.3,2751.5,2751.4,1.51201954]
[1646842924642,0.3,2751.5,2751.4,1.50958905]
[1646842924941,0.45853508,2751.5,2751.4,1.50958905]
[1646842925342,1.8187373,2751.3,2750.8,0.011667]
[1646842925544,3.6374673,2751.3,2750.8,0.011667]
[1646842925742,4.9374673,2751.3,2750.8,0.011667]
[1646842926143,4.9374673,2751.3,2750.8,0.67366893]
[1646842926544,0.9093213,2751.2,2750.9,0.08788915]
[1646842926747,0.9093213,2751.2,2750.9,0.09195836]
[1646842927199,0.9093213,2751.2,2751.0,0.09038878]
[1646842927391,0.9093213,2751.2,2751.0,0.10303378]
[1646842928090,0.9093213,2751.2,2751.1,0.014095]
[1646842928491,0.9093213,2751.2,2751.0,0.10709919]
[1646842928690,0.9093213,2751.2,2751.0,0.09445419]
[1646842928994,0.9093213,2751.2,2751.0,0.00406541]
[1646842929194,1.9093213,2751.2,2751.0,0.00813077]
[1646842929403,14.3737013,2751.2,2751.0,0.00406536]
[1646842929597,1.0,2751.1,2751.0,0.00406536]
[1646842929793,12.555,2751.1,2751.0,0.00406536]
[1646842929995,0.9095694,2750.8,2750.4,0.011667]
[1646842930195,1.41819332,2750.8,2750.3,0.67366893]
[1646842930393,1.41819332,2750.8,2750.3,0.66200193]
[1646842930593,1.81917,2750.7,2750.3,0.66200193]
[1646842931235,1.81917,2750.7,2750.2,0.67366893]
[1646842931537,0.90955,2750.7,2750.3,0.10244099]
[1646842931737,4.0287094,2750.8,2750.3,0.76444292]
[1646842932041,4.0287094,2750.8,2750.4,0.014135]
[1646842932240,4.0287094,2750.8,2750.5,0.013731]
[1646842932543,0.90946,2750.7,2750.5,0.013731]
[1646842932741,1.20946,2750.7,2750.5,0.013731]
[1646842934551,1.20946,2750.7,2750.1,0.7675484]
[1646842934552,11.75056751,2750.6,2750.1,0.7675484]
[1646842934792,11.75056751,2750.6,2750.1,0.10554647]
[1646842934793,0.90981,2750.4,2750.1,0.10554647]
[1646842934988,1.35485,2750.3,2750.1,0.10554647]
[1646842935192,0.9098,2750.2,2749.7,0.012467]
[1646842935388,1.09433161,2750.2,2749.7,0.0008]
[1646842935789,0.3,2750.1,2749.7,0.0008]
[1646842935989,0.3,2750.1,2749.7,0.0752929]
[1646842936388,0.3,2750.1,2749.8,0.00432379]
[1646842936990,0.3,2750.1,2749.8,0.08781824]
[1646842938541,0.3,2750.1,2749.8,0.08349445]
[1646842938944,0.3,2750.1,2749.8,0.08759513]
[1646842939748,0.3,2750.1,2749.8,0.08349445]
[1646842940045,0.3,2750.1,2749.8,0.08746541]
[1646842940648,0.9097,2750.0,2749.8,0.08746541]
[1646842940848,2.72933,2750.0,2749.8,0.00397096]
[1646842941047,2.7292459,2749.9,2749.7,0.0008]
[1646842941245,3.7292459,2749.9,2749.7,0.0008]
[1646842941445,3.7292459,2749.9,2749.8,0.00397096]
[1646842941446,2.8195,2749.9,2749.8,0.00397096]
[1646842941646,1.0,2749.9,2749.8,0.00397096]
[1646842941846,5.7585618,2750.0,2749.8,0.00397096]
[1646842941847,6.7585618,2750.0,2749.8,0.00397096]
[1646842942303,0.3,2750.0,2749.8,0.00397096]
[1646842942496,0.3,2750.0,2749.7,0.0008]
[1646842942693,1.20974,2750.1,2749.7,0.0008]
[1646842943099,1.20974,2750.1,2749.7,4.48433723]
[1646842943294,1.20974,2750.1,2749.8,0.07839132]
[1646842943896,1.20974,2750.1,2749.8,0.08246043]
[1646842944801,2.11933,2750.1,2749.9,1.51011921]
[1646842946156,2.11933,2750.1,2750.0,1.51011921]
[1646842946658,2.11933,2750.1,2749.9,0.00385426]
[1646842947058,2.11933,2750.1,2749.8,1.51011921]
[1646842947266,2.11933,2750.1,2749.9,1.51396529]
[1646842947467,2.11933,2750.1,2750.0,1.51011921]
[1646842947664,2.11933,2750.1,2749.9,0.00384608]
[1646842948265,2.11933,2750.1,2749.8,1.51011921]
[1646842948465,2.7295304,2749.8,2749.3,0.05770942]
[1646842948865,0.3,2749.7,2749.3,0.05770942]
[1646842949464,1.20981,2749.7,2749.3,0.05770942]
[1646842949701,0.90981,2749.6,2749.4,0.00406136]
[1646842950288,3.32819311,2749.8,2749.4,0.00406136]
[1646842950493,0.9098404,2749.8,2749.4,0.00406136]
[1646842950694,0.9098404,2749.8,2749.4,0.67530575]
[1646842950894,0.9098404,2749.8,2749.5,3.5]
[1646842951091,0.9098404,2749.8,2749.6,0.0694232]
[1646842951495,1.8189764,2750.2,2749.6,0.0694232]
[1646842951701,0.43291821,2750.3,2749.7,0.67707839]
[1646842951897,0.43291821,2750.3,2749.8,3.94604106]
[1646842952101,0.16067699,2750.6,2749.9,0.07305168]
[1646842952297,2.03540347,2750.9,2749.9,0.07305168]
[1646842952498,2.03540347,2750.9,2750.3,0.90381575]
[1646842952499,1.8187628,2750.6,2750.3,0.90381575]
[1646842952704,0.9093283,2750.7,2750.4,3.58451711]
[1646842952999,0.9093283,2750.7,2750.5,0.08487055]
[1646842953636,2.7278387,2750.7,2750.5,0.08487055]
[1646842954536,2.7278387,2750.7,2750.5,0.0889305]
[1646842955137,0.3,2750.6,2750.5,0.0889305]
[1646842955737,0.49717471,2750.6,2750.5,0.09299045]
[1646842955939,0.49717471,2750.6,2750.5,0.0889305]
[1646842956540,0.49717471,2750.6,2750.2,0.3885787]
[1646842956738,1.40658471,2750.6,2750.2,0.0885787]
[1646842956938,2.31599471,2750.6,2750.4,0.00384728]
[1646842957796,2.31599471,2750.6,2750.2,0.0885787]
[1646842958194,3.0282949,2750.4,2750.2,0.0885787]
[1646842960601,2.99187139,2750.4,2750.2,0.0885787]
[1646842960799,2.99187139,2750.4,2750.0,0.08755071]
[1646842960800,0.90947,2750.3,2750.0,0.08755071]
[1646842961841,0.90961,2750.2,2750.0,0.00431823]
[1646842962240,1.20961,2750.2,2750.0,0.00431823]
[1646842962442,1.40300195,2750.2,2750.0,0.00431823]
[1646842962642,1.40300195,2750.2,2749.6,0.67124439]
[1646842962841,1.81927,2750.0,2749.6,0.67124439]
[1646842963146,1.8191546,2749.9,2749.6,0.67124439]
[1646842963343,1.8191546,2749.9,2749.7,0.75591925]
[1646842963541,1.8191546,2749.9,2749.8,0.0852804]
[1646842964444,1.81914,2749.9,2749.7,0.67556299]
[1646842964716,1.81914,2749.9,2749.7,0.0043186]
[1646842965104,1.81914,2749.9,2749.4,0.44700432]
[1646842965305,1.81914,2749.9,2749.3,0.07490744]
[1646842965508,1.81914,2749.9,2749.7,0.0043186]
[1646842965710,2.7287099,2749.9,2749.7,0.0043186]
[1646842965907,1.8191799,2749.9,2749.7,0.0043186]
[1646842966308,1.8191799,2749.9,2749.3,0.07490744]
[1646842966507,1.8191799,2749.9,2749.3,0.94223397]
[1646842967010,1.8191799,2749.9,2749.3,2.27168716]
[1646842967413,1.8191799,2749.9,2749.3,0.94223397]
[1646842967613,1.8191799,2749.9,2749.3,0.07490744]
[1646842968436,1.8191799,2749.9,2749.4,1.51033626]
[1646842969238,1.86998452,2749.9,2749.4,1.51033626]
[1646842969441,0.97158473,2749.7,2749.5,1.51033626]
[1646842969640,0.97158473,2749.7,2749.0,1.32945319]
[1646842969641,0.06178473,2749.7,2749.6,1.51033626]
[1646842969839,0.06178473,2749.7,2749.0,2.83978945]
[1646842970040,0.06178473,2749.7,2749.0,1.51033626]
[1646842970041,0.9099,2749.6,2749.0,1.51033626]
[1646842970241,2.02834313,2749.6,2749.0,1.51033626]
[1646842970439,2.02834313,2749.6,2749.5,0.00419048]
[1646842971040,2.02834313,2749.6,2749.5,1.51452674]
[1646842971241,2.02834313,2749.6,2748.8,0.005834]
[1646842971242,2.95028153,2749.6,2748.8,2.83978945]
[1646842971440,1.81961,2749.5,2749.4,0.00431887]
[1646842971642,1.81961,2749.5,2749.4,1.51465513]
[1646842972292,1.81961,2749.5,2749.4,1.51033626]
[1646842972495,0.90989,2749.4,2748.7,1.69849369]
[1646842972692,0.90989,2749.4,2749.3,0.00431897]
[1646842972693,2.72963,2749.4,2749.3,0.00431897]
[1646842972893,2.72963,2749.4,2749.3,1.51502043]
[1646842973093,3.72963,2749.4,2749.3,1.51502043]
[1646842973294,7.22963,2749.4,2749.3,1.51502043]
[1646842973498,7.22963,2749.4,2748.4,3.01726059]
[1646842973499,6.3646,2749.3,2748.4,2.56015319]
[1646842973693,6.3646,2749.3,2748.3,9.93655777]
[1646842973694,0.91016,2749.0,2748.3,9.00205319]
[1646842973897,0.91016,2749.0,2748.3,1.32945319]
[1646842973898,1.41110073,2749.0,2748.3,1.32945319]
[1646842974093,1.41110073,2749.0,2748.5,0.89749657]
[1646842974094,1.09901347,2749.0,2748.5,0.89749657]
[1646842974494,2.00916347,2749.0,2748.4,0.89749657]
[1646842974694,1.82031,2748.9,2748.4,0.89749657]
[1646842975097,0.012541,2748.8,2748.6,0.67275992]
[1646842975296,1.8328526,2748.8,2748.7,0.67275992]
[1646842975496,1.8328526,2748.8,2748.6,0.67679293]
[1646842975797,1.8203116,2748.8,2748.7,0.67275992]
[1646842976047,1.8203116,2748.8,2748.5,0.89749657]
[1646842976443,1.8203116,2748.8,2748.6,0.00403306]
[1646842976645,3.6406216,2748.8,2748.7,0.67238563]
[1646842977251,3.6525566,2748.8,2748.6,0.67641869]
[1646842977448,3.6525566,2748.8,2748.6,0.6804517]
[1646842977650,3.6525566,2748.8,2748.6,0.67641864]
[1646842978251,2.7423966,2748.8,2748.6,0.67641864]
[1646842978452,2.7304616,2748.8,2748.6,0.67238563]
[1646842978656,2.7304616,2748.8,2748.6,0.90147909]
[1646842978657,0.9101516,2748.8,2748.6,0.90147909]
[1646842978953,1.0,2749.2,2748.6,0.90147909]
[1646842978954,1.90982,2749.2,2748.6,0.90147909]
[1646842979153,11.931767,2749.7,2749.0,0.67219489]
[1646842979355,1.0,2749.9,2749.2,0.67219489]
[1646842979356,1.1877818,2749.9,2749.2,0.67219489]
[1646842979558,0.1877818,2749.9,2749.2,0.67219489]
[1646842979795,2.8467,2750.2,2749.3,1.72240929]
[1646842979796,4.88427819,2750.2,2749.3,1.72240929]
[1646842979995,4.88427819,2750.2,2749.4,0.67219489]
[1646842979996,0.21834819,2750.2,2749.4,0.67219489]
[1646842980193,0.21834819,2750.2,2749.7,0.67219489]
[1646842980594,1.84666852,2750.5,2749.8,0.67219489]
[1646842980595,0.02758622,2750.5,2749.8,0.67219489]
[1646842980794,0.15586449,2750.6,2749.9,0.67219489]
[1646842981198,0.01592103,2750.5,2749.9,0.67219489]
[1646842981796,0.90942,2750.4,2749.8,0.67219489]
[1646842982195,0.90942,2750.4,2749.7,0.67219489]
[1646842982601,0.90942,2750.4,2749.6,0.67219489]
[1646842982801,0.90942,2750.4,2749.6,0.66613099]
[1646842983001,0.90958,2750.2,2749.6,0.66613099]
[1646842983203,0.06799504,2750.8,2749.7,0.0790747]
[1646842983645,0.01724653,2750.6,2749.7,0.0790747]
[1646842984246,1.83605443,2750.6,2749.7,0.0790747]
[1646842984445,0.06203363,2750.4,2749.7,0.0790747]
[1646842984644,2.03011853,2750.7,2749.7,0.0790747]
[1646842984645,1.22844442,2750.7,2749.7,0.0790747]
[1646842984847,1.22844442,2750.7,2749.6,0.89749657]
[1646842984848,0.013165,2750.5,2749.6,0.89749657]
[1646842985049,1.8322336,2750.5,2749.4,0.89749657]
[1646842985250,1.81931,2750.2,2749.4,0.89749657]
[1646842986458,0.90962,2750.0,2749.4,0.89749657]
[1646842986659,0.02985383,2750.5,2749.5,0.89749657]
[1646842986854,0.011667,2750.3,2749.6,0.07053612]
[1646842987298,0.02985355,2750.5,2749.6,0.96803269]
[1646842987495,0.02985355,2750.5,2750.2,1.12649094]
[1646842988096,0.90941,2750.4,2750.2,1.12649094]
[1646842989592,0.90941,2750.4,2749.7,0.89749657]
[1646842990194,2.18112021,2750.6,2749.8,4.5902756]
[1646842990394,0.9094604,2750.4,2749.8,0.0902756]
[1646842990594,1.8189304,2750.4,2749.8,0.0902756]
[1646842991041,2.7283404,2750.4,2749.8,0.0902756]
[1646842991649,2.7283404,2750.4,2749.5,7.62446527]
[1646842991650,0.90957,2750.3,2749.5,7.62446527]
[1646842991948,0.90961,2750.1,2749.5,7.55309657]
[1646842992143,0.90955,2749.9,2749.5,0.89749657]
[1646842992743,0.90955,2749.9,2749.6,1.0355311]
[1646842992945,0.90955,2749.9,2749.8,0.6710317]
[1646842993344,1.8191,2750.0,2749.8,0.6710317]
[1646842994044,1.8191,2750.0,2749.9,1.51017268]
[1646842994787,1.8191,2750.0,2749.7,2.18120438]
[1646842994989,1.8191,2750.0,2749.8,1.51017268]
[1646842994990,0.04897462,2749.9,2749.8,1.51017268]
[1646842995387,0.04897462,2749.9,2749.7,1.51017268]
[1646842995589,1.8191,2750.0,2749.8,1.51017268]
[1646842995788,1.8191,2750.0,2749.9,1.51017268]
[1646842996489,1.8191,2750.0,2749.8,0.6710317]
[1646842996690,0.90954,2750.2,2749.8,0.6710317]
[1646842996895,0.90954,2750.2,2750.0,0.6710317]
[1646842997088,0.90954,2750.2,2750.0,2.18120438]
[1646842997293,0.90954,2750.2,2750.1,1.51017268]
[1646842997697,0.90954,2750.2,2750.0,0.6710317]
[1646842997895,4.17179521,2750.3,2750.1,1.51017268]
[1646842998094,4.17179521,2750.3,2750.2,1.51017268]
[1646842998540,0.05341513,2750.2,2749.8,0.6710317]
[1646842998842,0.05303342,2750.0,2749.8,0.6710317]
[1646842999039,0.96265422,2750.0,2749.8,2.18121182]
[1646842999240,2.14310839,2750.0,2749.9,1.51018012]
[1646842999654,0.0493081,2749.8,2749.7,0.6710317]
[1646842999843,0.9098,2749.8,2749.7,1.51024966]
[1646843000041,0.9098,2749.8,2749.6,0.6710317]
[1646843000042,0.04571623,2749.7,2749.6,0.6710317]
[1646843000441,0.95555373,2749.7,2749.6,1.51029209]
[1646843000641,0.95555373,2749.7,2749.6,0.67162909]
[1646843001041,0.95555373,2749.7,2749.5,0.67162909]
[1646843001241,0.95555373,2749.7,2749.6,2.18192118]
[1646843001447,0.9098375,2749.7,2749.6,2.18192118]
[1646843001642,0.9098375,2749.7,2749.6,1.51029209]
[1646843002202,0.9098375,2749.7,2749.4,0.89749657]
[1646843002395,0.90971,2749.6,2749.4,0.89749657]
[1646843003295,0.90971,2749.6,2749.5,1.51029209]
[1646843003896,0.90971,2749.6,2749.5,2.18225258]
[1646843004094,0.90971,2749.6,2749.5,0.67196049]
[1646843005497,0.90971,2749.6,2749.4,0.67196049]
[1646843005939,0.90971,2749.6,2749.5,2.18225258]
[1646843006441,0.90971,2749.6,2749.5,1.51029209]
[1646843006840,0.90971,2749.6,2749.4,0.89749657]
[1646843007242,0.90971,2749.6,2749.4,2.40778866]
[1646843007543,0.90971,2749.6,2749.5,1.51029209]
[1646843007744,0.90971,2749.6,2749.5,0.89749657]
[1646843008345,0.9098,2749.8,2749.6,1.5067038]
[1646843008544,20.85955,2750.0,2749.7,1.51029209]
[1646843008843,19.95,2750.0,2749.9,0.67194785]
[1646843009443,20.85955,2750.0,2749.9,0.67194785]
[1646843009890,20.85955,2750.0,2749.9,1.51029209]
[1646843010090,20.85955,2750.0,2749.8,1.51029209]
[1646843010289,19.24871051,2750.0,2749.9,1.51029209]
[1646843010491,19.24871051,2750.0,2749.8,1.51029209]
[1646843012094,19.24871051,2750.0,2749.9,0.67207175]
[1646843012299,19.24871051,2750.0,2749.9,1.51029209]
[1646843012494,19.24871051,2750.0,2749.9,2.18230908]
[1646843012696,19.24871051,2750.0,2749.8,1.51029209]
[1646843013096,19.24871051,2750.0,2749.8,2.40626996]
[1646843013743,19.24871051,2750.0,2749.9,0.97522325]
[1646843013943,19.24871051,2750.0,2749.9,2.48551534]
[1646843015344,0.01544201,2750.5,2749.9,2.48551534]
[1646843015345,0.01544201,2750.5,2750.0,6.0415]
[1646843015546,0.01544201,2750.5,2750.4,0.69884126]
[1646843015743,0.01544201,2750.5,2750.4,0.55648606]
[1646843016142,0.01544201,2750.5,2750.4,2.06677815]
[1646843016345,0.01544085,2750.8,2750.4,2.06677815]
[1646843016543,0.01544085,2750.8,2750.5,1.05653147]
[1646843016744,0.01544085,2750.8,2750.6,0.07062681]
[1646843016945,0.01544085,2750.8,2750.7,0.76157992]
[1646843017206,0.90908,2751.1,2750.8,0.07964999]
[1646843017399,0.90908,2751.1,2750.9,1.51029209]
[1646843017603,0.90908,2751.1,2751.0,0.014528]
[1646843017799,1.83762755,2751.2,2751.0,1.52482009]
[1646843017997,1.83762755,2751.2,2751.1,1.51029209]
[1646843018600,2.75065721,2751.2,2750.6,1.51029209]
[1646843018799,2.73135966,2751.2,2750.6,1.51029209]
[1646843019201,4.03135966,2751.2,2750.6,1.51029209]
[1646843019399,1.8186653,2751.0,2750.6,1.51029209]
[1646843019598,1.8186653,2751.0,2750.7,1.51029209]
[1646843019599,0.95623802,2750.9,2750.7,1.51029209]
[1646843019801,1.20932,2750.9,2750.8,1.51029209]
[1646843020001,1.20932,2750.9,2750.4,0.67110087]
[1646843020002,1.20932,2750.9,2750.5,2.18139296]
[1646843020207,1.20932,2750.9,2750.6,1.51029209]
[1646843020399,1.20932,2750.9,2750.7,1.51029209]
[1646843020601,0.3,2750.9,2750.7,1.51029209]
[1646843020800,0.90933,2751.0,2750.7,1.51029209]
[1646843021350,0.90933,2751.0,2750.9,0.015546]
[1646843021748,0.90933,2751.0,2750.9,1.52583809]
[1646843022859,0.2452223,2751.1,2750.9,1.52583809]
[1646843023159,2.16793691,2751.2,2751.0,1.51029209]
[1646843023160,2.11819,2751.2,2751.0,1.51029209]
[1646843023354,2.12225719,2751.2,2751.0,1.51029209]
[1646843023555,3.03155719,2751.2,2751.0,1.51029209]
[1646843024355,3.02749,2751.2,2751.0,1.51029209]
[1646843024557,3.03155,2751.2,2751.0,1.51029209]
[1646843024793,0.27233315,2751.1,2751.0,1.51029209]
[1646843024995,0.27233315,2751.1,2750.2,1.1823]
[1646843024996,5.51433751,2751.1,2750.7,1.51029209]
[1646843025192,5.51433751,2751.1,2750.8,1.50999691]
[1646843025193,1.81878,2750.9,2750.8,1.50999691]
[1646843025397,0.90939,2750.9,2750.8,1.50999691]
[1646843025594,0.90938,2750.8,2750.5,0.67110087]
[1646843025794,0.3,2750.7,2750.5,0.67110087]
[1646843026397,0.3,2750.7,2749.7,13.11549497]
[1646843026398,1.2094045,2750.7,2750.6,1.50999449]
[1646843026599,2.09155445,2750.6,2750.3,0.67110087]
[1646843026903,0.014606,2750.4,2750.3,1.51010323]
[1646843027100,0.014606,2750.4,2749.6,1.5067038]
[1646843027101,16.60174211,2750.4,2750.1,1.51033525]
[1646843027302,0.25887713,2750.2,2749.6,1.5067038]
[1646843027604,1.81962,2750.1,2749.6,1.5067038]
[1646843027801,0.27752781,2749.9,2749.6,1.5067038]
[1646843028845,1.81912,2749.9,2749.6,1.5067038]
[1646843029149,1.81912,2749.9,2749.8,0.007]
[1646843029848,0.90956,2749.9,2749.8,0.007]
[1646843030246,1.11786523,2750.0,2749.8,0.007]
[1646843031149,0.90956,2749.9,2749.8,0.007]
[1646843032799,1.11786523,2750.0,2749.9,1.50672148]
[1646843033796,0.90955,2750.1,2749.9,1.50672148]
[1646843033997,0.90955,2750.1,2749.9,2.44489387]
[1646843034200,0.90955,2750.1,2750.0,0.07804755]
[1646843034800,1.81861,2750.4,2750.0,0.07804755]
[1646843035203,1.81861,2750.4,2750.0,1.40750074]
[1646843035599,1.81861,2750.4,2750.1,0.07370976]
[1646843035804,1.81861,2750.4,2750.2,0.89594509]
[1646843038453,1.81861,2750.4,2750.3,0.67203083]
[1646843038647,1.81861,2750.4,2750.3,0.6720646]
[1646843039048,1.81861,2750.4,2750.2,0.07420579]
[1646843039247,1.81861,2750.4,2750.2,0.97015088]
[1646843041393,1.81861,2750.4,2750.2,0.98419388]
[1646843042397,1.81861,2750.4,2750.2,0.67222645]
[1646843042398,3.5,2750.3,2750.2,0.67222645]
[1646843042601,0.30710453,2750.3,2750.1,0.67222645]
[1646843042800,1.81931,2750.2,2750.0,0.67222645]
[1646843042998,2.11931,2750.2,2749.9,1.50672148]
[1646843043198,0.90934,2750.1,2749.9,1.50672148]
[1646843043445,0.90934,2750.1,2750.0,1.18067731]
[1646843043750,0.90934,2750.1,2749.9,1.50672148]